Cogmind - Beta 14 @@@ ROGUE MODE // 2025.04.25 @ 00:24:44 Player: Kate+Gabe4evr Result: Destroyed by Y-45 Defender with Heavy Assault Rifle Performance ------------- Evolutions (1) 500 Regions Visited (2) 400 Robots Destroyed (20) 100 Value Destroyed (387) 387 Prototype IDs (0) 0 Alien Tech Used (0) 0 Bonus (0) 0 TOTAL SCORE: 1387 Bonus ------- None Cogmind --------- Core Integrity 0/400 Matter 300/300 Energy 100/100 System Corruption 18% Temperature Cool (9) Movement Core (350) Ox6 Location -9/Materials Parts ------- > --- POWER (1) -------- (None) > --- PROPULSION (3) --- (None) > --- UTILITY (3) ------ Large Storage Unit > --- WEAPON (2) ------- (None) > --- INVENTORY (15) --- Ion Engine Ion Engine Ion Engine Improved Ion Engine Aluminum Leg Aluminum Leg Aluminum Leg Improved Aluminum Leg Small Storage Unit Visual Processing Unit Terrain Scan Processor Small Laser Autogun Autogun Grenade Launcher Peak State ------------ > --- POWER ------------ Improved Ion Engine > --- PROPULSION ------- Aluminum Leg Improved Aluminum Leg Improved Aluminum Leg > --- UTILITY ---------- Heat Sink Heat Sink Large Storage Unit > --- WEAPON ----------- Small Laser Particle Cannon > --- INVENTORY -------- Ion Engine Ion Engine Ion Engine Light Ion Engine Aluminum Leg Aluminum Leg Aluminum Leg Aluminum Leg Small Storage Unit Small Laser Assault Rifle Grenade Launcher [Rating: 14] Favorites ----------- Power Ion Engine Engine Ion Engine Propulsion Aluminum Leg Leg Aluminum Leg Utility Large Storage Unit Device Heat Sink Storage Large Storage Unit Weapon Small Laser Energy Gun Small Laser Energy Cannon Particle Cannon Ballistic Gun Assault Rifle Launcher Grenade Launcher Build | -11 -10 -9 ------- Run | Yrd Mat Mat Slots Evolved 2 | . . 2 Power . | . . . Propulsion 1 | . . 1 Utility 1 | . . 1 Weapon . | . . . Parts Attached 28 | 7 6 15 Power 5 | 2 1 2 Engine 5 | 2 1 2 Core . | . . . Reactor . | . . . Propulsion 8 | 2 . 6 Treads . | . . . Leg 8 | 2 . 6 Wheel . | . . . Hover . | . . . Flight . | . . . Utility 6 | 1 1 4 Device 4 | . . 4 Storage 2 | 1 1 . Processor . | . . . Hackware . | . . . Protection . | . . . Artifact . | . . . Weapon 9 | 2 4 3 Energy Gun 6 | 2 2 2 Energy Cannon 1 | . . 1 Ballistic Gun 1 | . 1 . Ballistic Cannon . | . . . Launcher 1 | . 1 . Special Weapon . | . . . Impact Weapon . | . . . Slashing Weapon . | . . . Piercing Weapon . | . . . Special Melee Weapon . | . . . Unidentified Prototypes . | . . . Parts Lost 9 | . 1 8 Power 1 | . . 1 Propulsion 3 | . . 3 Utility 2 | . . 2 Weapon 3 | . 1 2 Highest Loss Streak 8 | . 1 8 To Critical Strikes . | . . . Average Slot Usage (%) 92 | . 94 89 Engine 11 | . 13 9 Leg 29 | . 28 30 Device 8 | . . 17 Storage 17 | . 23 11 Energy Gun 13 | . 15 12 Energy Cannon 3 | . . 7 Ballistic Gun 6 | . 12 1 Peak Build Rating 14 | 6 7 14 Average Rating 8 | 4 6 11 On Entrance 4 | . 6 7 Naked Turns . | . . . Heaviest Build 34 | 13 34 34 Greatest Support 36 | 20 20 36 Greatest Overweight (x) 3 | 3 1 . Average Overweight (x) . | . . . Largest Inventory Capacity 15 | 8 15 15 Average Capacity 13 | 7 12 15 Most Carried 15 | 2 8 15 Average Carried 8 | 1 6 12 Final Capacity 15 | 8 15 15 Final Carried 15 | 2 7 15 Class Distribution -------------------- 74% | Mutant 25% | Scavenger-Mutant Dominant Class ---------------- Mutant | -10/Materials Scavenger-Mutant | -9/Materials Resources | -11 -10 -9 ----------- Run | Yrd Mat Mat Matter Collected 562 | 242 175 145 Remotely . | . . . Salvage Created 515 | . 299 216 Parts 44 | . 31 13 Haulers Intercepted . | . . . Recyclers Shooed . | . . . Parts Field Recycled . | . . . Retrieved Matter . | . . . Parts Self-Destructed . | . . . Prevented . | . . . Kills | -11 -10 -9 ------- Run | Yrd Mat Mat Combat Hostiles Destroyed 13 | . 9 4 Guns 7 | . 4 3 Cannons 1 | . . 1 AOE 5 | . 5 . Classes Destroyed 8 | . 5 3 Worker 4 | . 4 . Builder 2 | . 2 . Recycler 1 | . 1 . Swarmer 6 | . 6 . Grunt 4 | . 3 1 Brawler 1 | . . 1 Duelist 1 | . . 1 Sentry 1 | . . 1 Best Kill Streak 11 | . 11 2 Combat Bots Only 4 | . 4 2 Max Kills in Single Turn 6 | . 6 1 Gunslinging . | . . . Exploded 2 | . 2 . Melee . | . . . Uniques/NPCs Destroyed . | . . . Combat | -11 -10 -9 -------- Run | Yrd Mat Mat Hostile Shots Fired 111 | . 41 70 Missed 25 | . 13 12 Damage Taken 1366 | . 246 1120 Core 436 | . 28 408 Absorbed by Shields . | . . . Core Remaining (%) 94 | 100 88 . Volleys Fired 51 | . 27 24 Largest 2 | . 2 2 Hottest 108 | . 60 108 Shots Fired 98 | . 50 48 Gun 83 | . 47 36 Cannon 12 | . . 12 Launcher 3 | . 3 . Special . | . . . Kinetic 26 | . 24 2 Thermal 56 | . 10 46 Explosive 3 | . 3 . Electromagnetic 13 | . 13 . Robot Hit Streak 10 | . 10 7 Robot Miss Streak 7 | . 7 4 Penetration Max . | . . . Secondary Targets . | . . . Shots Hit Robots 57 | . 28 29 Core Hits 32 | . 23 9 Critical Kills . | . . . Critical Parts Destroyed . | . . . Critical Strikes . | . . . Melee Attacks . | . . . Impact . | . . . Slashing . | . . . Piercing . | . . . Sneak Attacks . | . . . Combat Hostiles . | . . . Follow-up Attacks . | . . . Damage Inflicted 1529 | . 1039 490 Guns 596 | . 358 238 Cannons 143 | . . 143 Explosions 681 | . 681 . Melee . | . . . Ramming 109 | . . 109 Kinetic 183 | . 173 10 Thermal 974 | . 603 371 Explosive 188 | . 188 . Electromagnetic 75 | . 75 . Impact . | . . . Slashing . | . . . Piercing . | . . . Highest Corruption 17 | . . 17 Average Corruption 6 | . . 6 Corruption Purged . | . . . Corruption Blocked . | . . . Effects 3 | . . 3 Message Errors 2 | . . 2 Data Loss (minor) 1 | . . 1 Overload Shots . | . . . Overflow Damage 118 | . 118 . Projectiles . | . . . Explosions 118 | . 118 . Melee . | . . . Knockbacks . | . . . Impact . | . . . Kinetic . | . . . Secondary . | . . . Self-Inflicted Damage 93 | . . 93 Shots . | . . . Rammed . | . . . Targets Rammed 3 | . . 3 Kicked 3 | . . 3 Crushed . | . . . Highest Temperature 15 | . 15 3 Average Temperature 10 | . 10 3 Received Heat Transfer 345 | . 48 297 Siege Activations . | . . . Robots Corrupted . | . . . Combat Hostiles . | . . . Parts Fried . | . . . Impact Corruptions . | . . . Robots Melted . | . . . Combat Hostiles . | . . . Parts Melted 1 | . 1 . Heat Transferred 1334 | . 550 784 Parts Sabotaged . | . . . Parts Stolen . | . . . Parts Stripped . | . . . Power Chain Reactions . | . . . Alert | -11 -10 -9 ------- Run | Yrd Mat Mat Peak Influence 233 | . 233 197 Initial 31 | . . 31 Average 73 | . 46 110 Maximum Alert Level 1 | . 1 . Low Security (%) 98 | 100 96 100 Level 1 1 | . 3 . Level 2 . | . . . Level 3 . | . . . Level 4 . | . . . Level 5 . | . . . High Security . | . . . Max Security . | . . . Squads Dispatched 1 | . 1 . Investigation . | . . . Extermination . | . . . Reinforcement 1 | . 1 . Assault . | . . . Garrison . | . . . Intercept . | . . . Searches Triggered . | . . . Construction Impeded . | . . . Haulers Reinforced . | . . . Active Scanning Responses . | . . . Cargo Convoy Interrupts . | . . . Stealth | -11 -10 -9 --------- Run | Yrd Mat Mat Distress Signals 1 | . 1 . Communications Jammed . | . . . Distress Signals . | . . . Times Spotted 27 | . 13 14 Peak Tracking Total 6 | . 4 6 Tactical Retreats 4 | . . 4 Traps | -11 -10 -9 ------- Run | Yrd Mat Mat Traps Triggered 2 | . 1 1 Indirectly . | . . . Trap Hack Attempts . | . . . Triggered . | . . . Disarmed . | . . . Reprogrammed . | . . . Reused . | . . . Traps Extracted . | . . . Installed . | . . . Triggered . | . . . Machines | -11 -10 -9 ---------- Run | Yrd Mat Mat Machines Disabled 3 | . 2 1 Max in Single Turn 2 | . 2 1 Machines Repaired . | . . . Machines Dismantled . | . . . Machines Sabotaged . | . . . Overloaded Fab Kills . | . . . Hacking | -11 -10 -9 --------- Run | Yrd Mat Mat Machines Accessed 3 | . 1 2 Terminals 3 | . 1 2 Fabricators . | . . . Repair Stations . | . . . Recycling Units . | . . . Scanalyzers . | . . . Garrison Access . | . . . Total Hacks 8 | . 3 5 Successful 6 | . 1 5 Failed 2 | . 2 . Catastrophic . | . . . Database Lockouts . | . . . Manual 1 | . . 1 Terminals 8 | . 3 5 Fabricators . | . . . Repair Stations . | . . . Recycling Units . | . . . Scanalyzers . | . . . Garrison Access . | . . . Terminal Hacks 5 | . 1 4 Record 3 | . . 3 Unreport Threat 1 | . 1 . Zone Layout 1 | . . 1 Fabricator Hacks . | . . . Repair Station Hacks . | . . . Recycling Unit Hacks . | . . . Scanalyzer . | . . . Garrison Access Hacks . | . . . Unauthorized Hacks 1 | . . 1 Terminals 1 | . . 1 Track 1 | . . 1 Fabricators . | . . . Repair Stations . | . . . Recycling Units . | . . . Scanalyzers . | . . . Garrison Access . | . . . Data Cores Recovered . | . . . Used . | . . . Hacking Detections 2 | . 1 1 Full Trace Events . | . . . Feedback Events . | . . . Feedback Blocked . | . . . Robot Schematics Acquired . | . . . Robots Built . | . . . Authchips . | . . . Time . | . . . Total Robot Build Rating . | . . . Part Schematics Acquired . | . . . Parts Built . | . . . Authchips . | . . . Time . | . . . Total Part Build Rating . | . . . Parts Repaired . | . . . Time . | . . . Parts Recycled . | . . . Recycled Matter . | . . . Retrieved Matter . | . . . Retrieved Components . | . . . Parts Scanalyzed . | . . . Part Schematics Acquired . | . . . Parts Damaged . | . . . Bothacking | -11 -10 -9 ------------ Run | Yrd Mat Mat Used RIF Installer . | . . . Robots Hacked . | . . . Non-combat . | . . . Combat . | . . . Robot Hacks Applied . | . . . Relay Couplers Released . | . . . Fabnet Peak Effective % . | . . . Robots Rewired . | . . . Allies Hacked . | . . . Hacks Repelled . | . . . Allies | -11 -10 -9 -------- Run | Yrd Mat Mat Total Allies . | . . . Largest Group . | . . . Highest-Rated Group . | . . . Highest-Rated Ally . | . . . Total Orders . | . . . Ally Attacks . | . . . Total Damage . | . . . Kills . | . . . Allies Corrupted . | . . . Allies Melted . | . . . Intel | -11 -10 -9 ------- Run | Yrd Mat Mat Robot Analysis Total . | . . . Derelict Logs Recovered . | . . . Drone Launches . | . . . Drone Recoveries . | . . . Exploration | -11 -10 -9 ------------- Run | Yrd Mat Mat Turns Passed 1191 | 63 572 556 Spaces Moved 591 | 43 264 284 Core 10 | 10 . . Treads . | . . . Legs 581 | 33 264 284 Wheels . | . . . Hover . | . . . Flight . | . . . Fastest Speed 50 | 50 120 120 Average Speed 138 | 121 160 120 Slowest Speed 200 | 200 190 120 Overloaded Moves . | . . . Propulsion Burnouts . | . . . Robots Hopped . | . . . Cave-ins Triggered . | . . . Exploration Rate (%) 26 | 4 41 34 Regions Visited 2 Branch Regions . Pre-discovered Areas . | . . . Known Exits Taken . | . . . Unknown Exits Taken 2 | 1 1 . Scrap Searched . | . . . Spaces Dug . | . . . Terrain Destroyed 59 | . 59 . Melee . | . . . Projectile . | . . . AOE 59 | . 59 . Terrain Rammed 25 | . . 25 Walls Destroyed . | . . . Machines Disabled . | . . . Actions | -11 -10 -9 --------- Run | Yrd Mat Mat Total 817 | 50 359 408 Wait 102 | . 57 45 Move 589 | 42 263 284 Hop . | . . . Pick Up 14 | 1 6 7 Fast Attach 12 | 6 2 4 Attach 4 | . 1 3 Detach 2 | . . 2 Swap 12 | 1 3 8 Drop 3 | . . 3 Fire 51 | . 27 24 Melee . | . . . Ram 25 | . . 25 Kick 3 | . . 3 Crush . | . . . Escape Stasis . | . . . Rewire . | . . . Trap . | . . . Miscellaneous . | . . . Route ------- -11/Scrapyard -10/Materials (discovered 2 exits: *Mat / [*Min]) -9/Materials (discovered 1 exit: [*Min]) History --------- Turn | Location | Event 5 | -11/Scrapyard | Discovered new exit (range 16) 64 | -11/Scrapyard | Entered Materials 225 | -10/Materials | Discovered new exit (range 14) 307 | -10/Materials | Build established: Mutant 518 | -10/Materials | Discovered new exit (range 16) 636 | -10/Materials | Entered another Materials area 636 | -9/Materials | Evolved 2 slots: Propulsion x1, Utility x1 839 | -9/Materials | Discovered new exit (range 16) 1143 | -9/Materials | Core integrity fell below 50% 1148 | -9/Materials | System corruption reached 10% 1181 | -9/Materials | Core integrity fell below 20% 1192 | -9/Materials | Destroyed by Y-45 Defender with Heavy Assault Rifle Last Messages --------------- 01158_ Destabilizing: System corrupted (+1). 01158_ U-05 Engineer lays Concrete. 01162_ Slammed into Repair Station. 01162_ Destabilizing: System corrupted (+2). 01166_ Slammed into Repair Station. 01166_ Destabilizing: Core damaged (-20). 01166_ Destabilizing: Core damaged (-12). 01168_ Broken Aluminum Leg destroyed. 01170_ Slammed into Repair Station. 01171_ FQ,2A%BY%7BQJBVFJPVKNFH VBHT1AHPMR7 01174_ Slammed into Repair Station. 01174_ Critical hit (Burn: +37). 01177_ Broken Particle Cannon destroyed. 01178_ Slammed into Repair Station. 01181_ Destabilizing: System corrupted (+2). 01185_ Slammed into Repair Station. 01186_ System corrupted: Component data lost. 01188_ Slammed into Repair Station. 01192_ Destabilizing: System corrupted (+1). 01192_ Destabilizing: Core damaged (-8). Map ----- +----------------------------------------------------+ | ?????????????????????????????????????????????# #?# | | ?????????????????????????????????????????????# #?# | | ???????????????????????????????????#########?# #?# | | ???????????????????????????????????# ### ### | | ???????????????????????????????????# """ + + | | ???????????????????????????????????# """ ### ### | | ???????????????????????????????????# """ #?# #?# | | ???????????????????????????????????# #?# #?# | | ???????????????????????????????????####+####?# #?# | | ????????????????????????????????????# #### ### | | ??????????????????????????########### # | | ??????????????????????????# / | | ??????????????????????????# ######+## ! # | | ???????????????????????#### #???? # ######## | | ??????????????????????##! #????"" ### ###??????# | | ??????????????????????#! #???""" #?# #????????# | | ??????????????????????#! #???""" #?# #????????# | | ??????????????????????#! #?? #?# #????????? | | ??????????????#########! #??######?# #????????? | | ??????????????# ! ###! #?????????# #????????? | | ??????????????# ###### #?????????# #????????? | | ??????????????# + #?????????? ?????????? | | ??????????????# """" ###Y####??????????"?????????? | | ??????????????# """" # #??????????%?????????? | | ??????????????# """" # #??????????"?????????? | | ???????????????####### "@" #?????????? ?????????? | | ?????????????????????# "R" #?????????? ?????????? | | ?????????????????????# """ #??????????=?????????? | | ?????????????????????# #????????????????????? | | ?????????????????????########????????????????????? | | ?????????????????????????????????????????????????? | | ?????????????????????????????????????????????????? | | ?????????????????????????????????????????????????? | | ?????????????????????????????????????????????????? | | ?????????????????????????????????????????????????? | | ?????????????????????????????????????????????????? | | ?????????????????????????????????????????????????? | | ?????????????????????????????????????????????????? | | ?????????????????????????????????????????????????? | | ?????????????????????????????????????????????????? | | ?????????????????????????????????????????????????? | | ?????????????????????????????????????????????????? | | | | | | | | | | | | | | | | | +----------------------------------------------------+ Best States ------------- Heat Dissipation 48 Energy Generation 12 Energy Capacity 265 Matter Stores 300 Matter Capacity 300 Sight Range 16 Terrain Scan Density 10 Evasion (%) 55 Item Schematics ----------------- None Robot Schematics ------------------ None Fabricated ------------ Nothing Alien Tech Used ----------------- None Achievements -------------- None Challenges ------------ None Game ------ Seed ImprinterShockSink Manual? 0 Play Time 00:28:49 Cumulative 75.3 hours Start 2025.04.24 @ 23:24:58 End 2025.04.25 @ 00:24:44 Sessions 1 Manual Loads 0 Difficulty Rogue Special Mode None Game No. 146 Rogue 146 Adventurer 0 Explorer 0 Win Type - Total 1 Types 1/0/0/0/0/0/0/0/0 Lore% 58 Gallery% 57 Achievement% 48 Wizard Run 0 Options --------- Layout 0 ASCII 0 Keyboard 1 Movement Numpad Keybinds 0 Fullscreen 2 Font 24/Terminus Map View 76x50 Zoom Use 0% Tactical HUD 1 Map Filters NONE Filters NONE Steam 1 RUN: f82aae42-81e1-4455-a427-dd41523d41cb